[Event "Titled Tuesday Blitz October 11 Early 2022"]
[White "Shuvalova, Polina"]
[Black "Zierk, Steven"]
[WhiteFideId "24171760"]
[BlackFideId "2034255"]
[WhiteElo "2392"]
[BlackElo "2494"]
[Result "1/2-1/2"]
[Round "02"]
[TimeControl "180+1"]
[Date "2022.10.11"]
[WhiteClock "0:00:12"]
[BlackClock "0:00:06"]

1. d4 {[%clk 0:03:00]}  d5 {[%clk 0:02:57]} 2. Nf3 {[%clk 0:03:00]}  Nf6 {[%clk 0:02:56]} 3. Bf4 {[%clk 0:02:52]}  c5 {[%clk 0:02:56]} 4. e3 {[%clk 0:02:52]}  Qb6 {[%clk 0:02:56]} 5. Nbd2 {[%clk 0:02:53]}  cxd4 {[%clk 0:02:51]} 6. exd4 {[%clk 0:02:48]}  Nc6 {[%clk 0:02:44]} 7. Nb3 {[%clk 0:02:46]}  Bg4 {[%clk 0:02:44]} 8. c3 {[%clk 0:02:45]}  e6 {[%clk 0:02:42]} 9. Be2 {[%clk 0:02:46]}  Be7 {[%clk 0:02:41]} 10. O-O {[%clk 0:02:46]}  O-O {[%clk 0:02:40]} 11. h3 {[%clk 0:02:46]}  Bh5 {[%clk 0:02:40]} 12. Re1 {[%clk 0:02:46]}  a5 {[%clk 0:02:39]} 13. a4 {[%clk 0:02:41]}  Ne4 {[%clk 0:02:39]} 14. Ra2 {[%clk 0:02:37]}  Rfe8 {[%clk 0:02:24]} 15. Nc1 {[%clk 0:02:36]}  f6 {[%clk 0:02:13]} 16. Nd3 {[%clk 0:02:34]}  g5 {[%clk 0:02:02]} 17. Be3 {[%clk 0:02:33]}  Bf7 {[%clk 0:01:59]} 18. Nd2 {[%clk 0:02:29]}  Nd6 {[%clk 0:01:58]} 19. Bh5 {[%clk 0:02:25]}  Nf5 {[%clk 0:01:34]} 20. Bxf7+ {[%clk 0:02:24]}  Kxf7 {[%clk 0:01:34]} 21. Qh5+ {[%clk 0:02:25]}  Kg8 {[%clk 0:01:34]} 22. f4 {[%clk 0:02:11]}  Nxe3 {[%clk 0:01:11]} 23. Rxe3 {[%clk 0:02:11]}  Nxd4 {[%clk 0:01:11]} 24. cxd4 {[%clk 0:02:10]}  Qxd4 {[%clk 0:01:12]} 25. Nf1 {[%clk 0:01:32]}  gxf4 {[%clk 0:01:09]} 26. Qg4+ {[%clk 0:01:13]}  Kf8 {[%clk 0:01:08]} 27. Nxf4 {[%clk 0:01:12]}  Bc5 {[%clk 0:01:02]} 28. Nxe6+ {[%clk 0:01:11]}  Rxe6 {[%clk 0:01:02]} 29. Qxe6 {[%clk 0:01:12]}  Qf4 {[%clk 0:00:28]} 30. Ra3 {[%clk 0:01:12]}  Rd8 {[%clk 0:00:22]} 31. Rd3 {[%clk 0:01:07]}  Kg7 {[%clk 0:00:19]} 32. Qg4+ {[%clk 0:01:04]}  Qxg4 {[%clk 0:00:19]} 33. hxg4 {[%clk 0:01:05]}  Kf7 {[%clk 0:00:18]} 34. Kh2 {[%clk 0:01:05]}  Bxe3 {[%clk 0:00:17]} 35. Nxe3 {[%clk 0:01:06]}  Ke6 {[%clk 0:00:17]} 36. Kg3 {[%clk 0:01:05]}  d4 {[%clk 0:00:17]} 37. Kf3 {[%clk 0:01:04]}  Ke5 {[%clk 0:00:10]} 38. Nc4+ {[%clk 0:01:03]}  Kd5 {[%clk 0:00:10]} 39. Nxa5 {[%clk 0:01:04]}  Ra8 {[%clk 0:00:11]} 40. b4 {[%clk 0:01:03]}  b6 {[%clk 0:00:10]} 41. Nb3 {[%clk 0:00:57]}  Kc4 {[%clk 0:00:11]} 42. Ke2 {[%clk 0:00:58]}  Rxa4 {[%clk 0:00:11]} 43. Nxd4 {[%clk 0:00:53]}  Ra2+ {[%clk 0:00:11]} 44. Ke3 {[%clk 0:00:53]}  Rxg2 {[%clk 0:00:11]} 45. Rd1 {[%clk 0:00:30]}  Rxg4 {[%clk 0:00:10]} 46. b5 {[%clk 0:00:30]}  h5 {[%clk 0:00:09]} 47. Rc1+ {[%clk 0:00:26]}  Kd5 {[%clk 0:00:09]} 48. Ne2 {[%clk 0:00:26]}  h4 {[%clk 0:00:07]} 49. Rc6 {[%clk 0:00:23]}  h3 {[%clk 0:00:05]} 50. Rxf6 {[%clk 0:00:20]}  Rh4 {[%clk 0:00:03]} 51. Rf1 {[%clk 0:00:18]}  h2 {[%clk 0:00:04]} 52. Rh1 {[%clk 0:00:18]}  Kc4 {[%clk 0:00:04]} 53. Kf2 {[%clk 0:00:16]}  Kxb5 {[%clk 0:00:04]} 54. Kg3 {[%clk 0:00:16]}  Rh8 {[%clk 0:00:05]} 55. Nf4 {[%clk 0:00:17]}  Kc4 {[%clk 0:00:05]} 56. Nh3 {[%clk 0:00:17]}  Rg8+ {[%clk 0:00:04]} 57. Kf3 {[%clk 0:00:15]}  b5 {[%clk 0:00:05]} 58. Rxh2 {[%clk 0:00:15]}  b4 {[%clk 0:00:06]} 59. Nf4 {[%clk 0:00:15]}  b3 {[%clk 0:00:06]} 60. Rh7 {[%clk 0:00:12]}  b2 {[%clk 0:00:06]} 61. Rc7+ {[%clk 0:00:12]}  Kb3 {[%clk 0:00:06]} 62. Rb7+ {[%clk 0:00:12]}  Kc2 {[%clk 0:00:07]} 63. Rc7+ {[%clk 0:00:11]}  Kb3 {[%clk 0:00:07]} 64. Rb7+ {[%clk 0:00:12]}  Kc2 {[%clk 0:00:07]} 65. Rc7+ {[%clk 0:00:12]}  Kb3 {[%clk 0:00:06]} 1/2-1/2


[Site "https://www.chess.com"]

[Event "Titled Tuesday Blitz October 11 Early 2022"]
[White "Skatchkov, Valery"]
[Black "Blokhin, Sofia"]
[WhiteFideId "24195812"]
[BlackFideId "4508190"]
[WhiteElo "2199"]
[BlackElo "2005"]
[Result "0-1"]
[Round "02"]
[TimeControl "180+1"]
[Date "2022.10.12"]
[WhiteClock "0:00:15"]
[BlackClock "0:00:09"]

1. Nf3 {[%clk 0:03:00]}  e6 {[%clk 0:02:57]} 2. c4 {[%clk 0:03:01]}  f5 {[%clk 0:02:54]} 3. g4 {[%clk 0:02:41]}  fxg4 {[%clk 0:02:51]} 4. Ne5 {[%clk 0:02:42]}  Nf6 {[%clk 0:02:47]} 5. h3 {[%clk 0:02:42]}  g3 {[%clk 0:02:42]} 6. fxg3 {[%clk 0:02:41]}  c5 {[%clk 0:02:36]} 7. Bg2 {[%clk 0:02:40]}  Qc7 {[%clk 0:02:33]} 8. d4 {[%clk 0:02:34]}  cxd4 {[%clk 0:02:30]} 9. Bf4 {[%clk 0:02:22]}  d6 {[%clk 0:02:19]} 10. Nd3 {[%clk 0:01:59]}  e5 {[%clk 0:02:18]} 11. Bg5 {[%clk 0:01:58]}  Qxc4 {[%clk 0:02:10]} 12. O-O {[%clk 0:01:57]}  Nc6 {[%clk 0:02:00]} 13. Nd2 {[%clk 0:01:37]}  Qe6 {[%clk 0:01:54]} 14. Rc1 {[%clk 0:01:37]}  Bd7 {[%clk 0:01:52]} 15. Qa4 {[%clk 0:01:22]}  h6 {[%clk 0:01:36]} 16. Qb5 {[%clk 0:01:10]}  Nd8 {[%clk 0:01:28]} 17. Qa5 {[%clk 0:00:43]}  hxg5 {[%clk 0:01:24]} 18. Rc7 {[%clk 0:00:43]}  Nc6 {[%clk 0:00:57]} 19. Qb5 {[%clk 0:00:40]}  e4 {[%clk 0:00:44]} 20. Rxf6 {[%clk 0:00:33]}  gxf6 {[%clk 0:00:40]} 21. Nxe4 {[%clk 0:00:31]}  d5 {[%clk 0:00:20]} 22. Nec5 {[%clk 0:00:19]}  Bxc5 {[%clk 0:00:17]} 23. Nxc5 {[%clk 0:00:20]}  Qe3+ {[%clk 0:00:17]} 24. Kf1 {[%clk 0:00:17]}  Bxh3 {[%clk 0:00:15]} 25. Qxb7 {[%clk 0:00:16]}  Bxg2+ {[%clk 0:00:14]} 26. Kxg2 {[%clk 0:00:13]}  Qxe2+ {[%clk 0:00:14]} 27. Kg1 {[%clk 0:00:14]}  Qh2+ {[%clk 0:00:10]} 28. Kf1 {[%clk 0:00:14]}  Qh1+ {[%clk 0:00:10]} 29. Ke2 {[%clk 0:00:14]}  Rh2+ {[%clk 0:00:10]} 30. Kd3 {[%clk 0:00:15]}  Qd1# {[%clk 0:00:09]} 0-1


[Site "https://www.chess.com"]

[Event "Titled Tuesday Blitz October 11 Early 2022"]
[White "Sonnenschein, Philipp"]
[Black "Harsh Suresh"]
[WhiteFideId "16250877"]
[BlackFideId "45018464"]
[WhiteElo "2225"]
[BlackElo "2180"]
[Result "0-1"]
[Round "02"]
[TimeControl "180+1"]
[Date "2022.10.12"]
[WhiteClock "0:00:11"]
[BlackClock "0:00:51"]

1. e4 {[%clk 0:03:00]}  c6 {[%clk 0:02:59]} 2. d4 {[%clk 0:03:00]}  d5 {[%clk 0:03:00]} 3. e5 {[%clk 0:03:00]}  Bf5 {[%clk 0:02:52]} 4. h4 {[%clk 0:03:00]}  h5 {[%clk 0:02:48]} 5. Bd3 {[%clk 0:03:01]}  Bxd3 {[%clk 0:02:47]} 6. Qxd3 {[%clk 0:03:02]}  Qa5+ {[%clk 0:02:46]} 7. b4 {[%clk 0:03:00]}  Qa6 {[%clk 0:02:45]} 8. Qb3 {[%clk 0:02:59]}  e6 {[%clk 0:02:42]} 9. Nf3 {[%clk 0:02:59]}  Qb6 {[%clk 0:02:36]} 10. a3 {[%clk 0:02:47]}  a5 {[%clk 0:02:34]} 11. bxa5 {[%clk 0:02:37]}  Qxb3 {[%clk 0:02:31]} 12. cxb3 {[%clk 0:02:37]}  Rxa5 {[%clk 0:02:32]} 13. O-O {[%clk 0:02:18]}  Ne7 {[%clk 0:02:24]} 14. Nc3 {[%clk 0:02:13]}  Nf5 {[%clk 0:02:23]} 15. a4 {[%clk 0:02:10]}  Nd7 {[%clk 0:02:05]} 16. Ba3 {[%clk 0:02:00]}  Bxa3 {[%clk 0:01:26]} 17. Rxa3 {[%clk 0:02:01]}  Ke7 {[%clk 0:01:27]} 18. b4 {[%clk 0:01:54]}  Ra7 {[%clk 0:01:24]} 19. Rfa1 {[%clk 0:01:45]}  Rha8 {[%clk 0:01:22]} 20. a5 {[%clk 0:01:37]}  Nb6 {[%clk 0:01:21]} 21. Na4 {[%clk 0:01:26]}  Nc4 {[%clk 0:01:11]} 22. R3a2 {[%clk 0:00:54]}  f6 {[%clk 0:01:07]} 23. exf6+ {[%clk 0:00:54]}  gxf6 {[%clk 0:01:07]} 24. Nc3 {[%clk 0:00:46]}  Kd6 {[%clk 0:01:03]} 25. Kf1 {[%clk 0:00:46]}  e5 {[%clk 0:00:53]} 26. dxe5+ {[%clk 0:00:45]}  fxe5 {[%clk 0:00:54]} 27. Ke2 {[%clk 0:00:45]}  e4 {[%clk 0:00:52]} 28. Nd2 {[%clk 0:00:40]}  Nd4+ {[%clk 0:00:51]} 29. Kf1 {[%clk 0:00:20]}  Nxd2+ {[%clk 0:00:50]} 30. Rxd2 {[%clk 0:00:21]}  Nb3 {[%clk 0:00:51]} 31. Nxe4+ {[%clk 0:00:20]}  Kc7 {[%clk 0:00:52]} 32. Rb1 {[%clk 0:00:14]}  Nxd2+ {[%clk 0:00:50]} 33. Nxd2 {[%clk 0:00:15]}  b6 {[%clk 0:00:50]} 34. axb6+ {[%clk 0:00:15]}  Kxb6 {[%clk 0:00:50]} 35. Nf3 {[%clk 0:00:12]}  Ra1 {[%clk 0:00:50]} 36. Rxa1 {[%clk 0:00:12]}  Rxa1+ {[%clk 0:00:50]} 37. Ke2 {[%clk 0:00:12]}  Rb1 {[%clk 0:00:51]} 38. Ne5 {[%clk 0:00:11]}  Rxb4 {[%clk 0:00:50]} 39. g3 {[%clk 0:00:11]}  Re4+ {[%clk 0:00:51]} 40. Kf3 {[%clk 0:00:11]}  Rxe5 {[%clk 0:00:51]} 0-1


[Site "https://www.chess.com"]

[Event "Titled Tuesday Blitz October 11 Early 2022"]
[White "Srihari L R"]
[Black "D`Arruda, Ricardo D."]
[WhiteFideId "46617116"]
[BlackFideId "100692"]
[WhiteElo "2336"]
[BlackElo "2433"]
[Result "1-0"]
[Round "02"]
[TimeControl "180+1"]
[Date "2022.10.12"]
[WhiteClock "0:01:17"]
[BlackClock "0:00:49"]

1. d4 {[%clk 0:03:00]}  Nf6 {[%clk 0:02:59]} 2. Bg5 {[%clk 0:02:58]}  c5 {[%clk 0:02:58]} 3. Nc3 {[%clk 0:02:57]}  cxd4 {[%clk 0:02:57]} 4. Qxd4 {[%clk 0:02:58]}  Nc6 {[%clk 0:02:57]} 5. Qh4 {[%clk 0:02:57]}  e6 {[%clk 0:02:53]} 6. O-O-O {[%clk 0:02:57]}  Be7 {[%clk 0:02:52]} 7. e4 {[%clk 0:02:57]}  Qc7 {[%clk 0:02:47]} 8. f4 {[%clk 0:02:55]}  d6 {[%clk 0:02:45]} 9. Nf3 {[%clk 0:02:49]}  a6 {[%clk 0:02:44]} 10. Qg3 {[%clk 0:02:38]}  h6 {[%clk 0:02:38]} 11. Bh4 {[%clk 0:02:28]}  Nh5 {[%clk 0:01:58]} 12. Qg4 {[%clk 0:02:21]}  Bxh4 {[%clk 0:01:57]} 13. Qxh4 {[%clk 0:02:15]}  Nf6 {[%clk 0:01:55]} 14. a3 {[%clk 0:02:08]}  Bd7 {[%clk 0:01:54]} 15. Be2 {[%clk 0:02:01]}  O-O-O {[%clk 0:01:53]} 16. Rd2 {[%clk 0:02:01]}  d5 {[%clk 0:01:35]} 17. exd5 {[%clk 0:01:57]}  exd5 {[%clk 0:01:36]} 18. Nxd5 {[%clk 0:01:56]}  Nxd5 {[%clk 0:01:36]} 19. Rxd5 {[%clk 0:01:56]}  Be6 {[%clk 0:01:37]} 20. Rxd8+ {[%clk 0:01:56]}  Rxd8 {[%clk 0:01:38]} 21. Rd1 {[%clk 0:01:56]}  Rxd1+ {[%clk 0:01:36]} 22. Bxd1 {[%clk 0:01:56]}  Qd6 {[%clk 0:01:24]} 23. Qg3 {[%clk 0:01:46]}  g6 {[%clk 0:01:18]} 24. Ne5 {[%clk 0:01:45]}  Nd4 {[%clk 0:01:08]} 25. Qc3+ {[%clk 0:01:23]}  Kb8 {[%clk 0:01:08]} 26. Qb4 {[%clk 0:01:22]}  Qc7 {[%clk 0:00:49]} 27. Qxd4 {[%clk 0:01:17]} 1-0


[Site "https://www.chess.com"]

[Event "Titled Tuesday Blitz October 11 Early 2022"]
[White "Storey, Charles H"]
[Black "Tsaruk, Maksim"]
[WhiteFideId "406686"]
[BlackFideId "13511173"]
[WhiteElo "2252"]
[BlackElo "2273"]
[Result "0-1"]
[Round "02"]
[TimeControl "180+1"]
[Date "2022.10.12"]
[WhiteClock "0:00:41"]
[BlackClock "0:00:16"]

1. e4 {[%clk 0:03:00]}  Nf6 {[%clk 0:02:58]} 2. e5 {[%clk 0:02:59]}  Nd5 {[%clk 0:02:58]} 3. d4 {[%clk 0:03:00]}  d6 {[%clk 0:02:58]} 4. Nf3 {[%clk 0:03:01]}  Nc6 {[%clk 0:02:58]} 5. Be2 {[%clk 0:03:01]}  Bg4 {[%clk 0:02:58]} 6. c4 {[%clk 0:03:01]}  Nb6 {[%clk 0:02:56]} 7. exd6 {[%clk 0:03:01]}  exd6 {[%clk 0:02:52]} 8. b3 {[%clk 0:02:58]}  Be7 {[%clk 0:02:52]} 9. Bb2 {[%clk 0:02:57]}  Bf6 {[%clk 0:02:52]} 10. O-O {[%clk 0:02:56]}  O-O {[%clk 0:02:52]} 11. Na3 {[%clk 0:02:53]}  Re8 {[%clk 0:02:48]} 12. h3 {[%clk 0:02:47]}  Bh5 {[%clk 0:02:44]} 13. Re1 {[%clk 0:02:45]}  d5 {[%clk 0:02:43]} 14. c5 {[%clk 0:02:45]}  Nd7 {[%clk 0:02:44]} 15. Qd2 {[%clk 0:02:38]}  Re4 {[%clk 0:02:22]} 16. b4 {[%clk 0:02:31]}  a6 {[%clk 0:01:48]} 17. Nc2 {[%clk 0:02:25]}  Qe7 {[%clk 0:01:41]} 18. g4 {[%clk 0:02:17]}  Bg6 {[%clk 0:01:41]} 19. Bd3 {[%clk 0:02:15]}  Rxe1+ {[%clk 0:01:38]} 20. Rxe1 {[%clk 0:02:14]}  Qf8 {[%clk 0:01:38]} 21. Bxg6 {[%clk 0:02:11]}  fxg6 {[%clk 0:01:39]} 22. Kg2 {[%clk 0:02:03]}  Re8 {[%clk 0:01:39]} 23. Rxe8 {[%clk 0:02:02]}  Qxe8 {[%clk 0:01:40]} 24. Qe3 {[%clk 0:01:58]}  Qf7 {[%clk 0:00:53]} 25. Bc3 {[%clk 0:01:53]}  h6 {[%clk 0:00:51]} 26. a4 {[%clk 0:01:52]}  g5 {[%clk 0:00:51]} 27. b5 {[%clk 0:01:51]}  axb5 {[%clk 0:00:52]} 28. axb5 {[%clk 0:01:52]}  Ne7 {[%clk 0:00:53]} 29. Nb4 {[%clk 0:01:41]}  Ng6 {[%clk 0:00:52]} 30. Nd3 {[%clk 0:01:38]}  Ndf8 {[%clk 0:00:50]} 31. Kf1 {[%clk 0:01:31]}  Ne6 {[%clk 0:00:50]} 32. Nfe5 {[%clk 0:01:20]}  Bxe5 {[%clk 0:00:49]} 33. dxe5 {[%clk 0:01:20]}  Qd7 {[%clk 0:00:45]} 34. b6 {[%clk 0:01:14]}  d4 {[%clk 0:00:40]} 35. Bxd4 {[%clk 0:01:11]}  Nxd4 {[%clk 0:00:26]} 36. bxc7 {[%clk 0:01:11]}  Ne6 {[%clk 0:00:25]} 37. Qe4 {[%clk 0:01:04]}  Ne7 {[%clk 0:00:23]} 38. Qxb7 {[%clk 0:01:03]}  Qxd3+ {[%clk 0:00:22]} 39. Kg1 {[%clk 0:01:02]}  Qd7 {[%clk 0:00:21]} 40. c8=Q+ {[%clk 0:01:00]}  Qxc8 {[%clk 0:00:21]} 41. Qxe7 {[%clk 0:01:00]}  Nxc5 {[%clk 0:00:21]} 42. f3 {[%clk 0:00:55]}  Ne6 {[%clk 0:00:22]} 43. h4 {[%clk 0:00:54]}  gxh4 {[%clk 0:00:21]} 44. Qxh4 {[%clk 0:00:54]}  Qf8 {[%clk 0:00:21]} 45. Kg2 {[%clk 0:00:51]}  Qf4 {[%clk 0:00:20]} 46. Qe1 {[%clk 0:00:51]}  Ng5 {[%clk 0:00:18]} 47. Qe2 {[%clk 0:00:51]}  Ne6 {[%clk 0:00:14]} 48. Qb5 {[%clk 0:00:49]}  Qxf3+ {[%clk 0:00:13]} 49. Kxf3 {[%clk 0:00:49]}  Nd4+ {[%clk 0:00:14]} 50. Ke4 {[%clk 0:00:49]}  Nxb5 {[%clk 0:00:15]} 51. Kd5 {[%clk 0:00:50]}  Kf7 {[%clk 0:00:14]} 52. Ke4 {[%clk 0:00:43]}  Ke6 {[%clk 0:00:14]} 53. Kf4 {[%clk 0:00:42]}  g5+ {[%clk 0:00:15]} 54. Ke4 {[%clk 0:00:41]}  Na7 {[%clk 0:00:16]} 0-1


[Site "https://www.chess.com"]

[Event "Titled Tuesday Blitz October 11 Early 2022"]
[White "Subelj, Jan"]
[Black "Dubov, Daniil"]
[WhiteFideId "14618583"]
[BlackFideId "24126055"]
[WhiteElo "2394"]
[BlackElo "2791"]
[Result "1-0"]
[Round "02"]
[TimeControl "180+1"]
[Date "2022.10.11"]
[WhiteClock "0:00:25"]
[BlackClock "0:00:02"]

1. e4 {[%clk 0:03:00]}  c5 {[%clk 0:02:50]} 2. Nf3 {[%clk 0:03:00]}  d6 {[%clk 0:02:50]} 3. Bb5+ {[%clk 0:02:51]}  Bd7 {[%clk 0:02:50]} 4. c4 {[%clk 0:02:50]}  g6 {[%clk 0:02:48]} 5. Nc3 {[%clk 0:02:50]}  Bg7 {[%clk 0:02:47]} 6. O-O {[%clk 0:02:49]}  Nc6 {[%clk 0:02:46]} 7. Bxc6 {[%clk 0:02:49]}  Bxc6 {[%clk 0:02:45]} 8. d4 {[%clk 0:02:49]}  cxd4 {[%clk 0:02:44]} 9. Nxd4 {[%clk 0:02:50]}  Nf6 {[%clk 0:02:44]} 10. f3 {[%clk 0:02:50]}  O-O {[%clk 0:02:43]} 11. Be3 {[%clk 0:02:50]}  Rc8 {[%clk 0:02:41]} 12. b3 {[%clk 0:02:50]}  a6 {[%clk 0:02:40]} 13. Qd2 {[%clk 0:02:49]}  Re8 {[%clk 0:02:39]} 14. Rfd1 {[%clk 0:02:45]}  Bd7 {[%clk 0:02:37]} 15. Rac1 {[%clk 0:02:45]}  Qc7 {[%clk 0:02:36]} 16. Nd5 {[%clk 0:02:37]}  Nxd5 {[%clk 0:02:36]} 17. cxd5 {[%clk 0:02:38]}  Qb8 {[%clk 0:02:35]} 18. Ne2 {[%clk 0:02:35]}  Rxc1 {[%clk 0:02:25]} 19. Rxc1 {[%clk 0:02:36]}  Rc8 {[%clk 0:02:25]} 20. Bd4 {[%clk 0:02:32]}  Bf8 {[%clk 0:02:22]} 21. Rxc8 {[%clk 0:02:25]}  Qxc8 {[%clk 0:02:22]} 22. Qc3 {[%clk 0:02:25]}  Qxc3 {[%clk 0:02:09]} 23. Nxc3 {[%clk 0:02:26]}  f5 {[%clk 0:02:07]} 24. Kf2 {[%clk 0:02:25]}  Kf7 {[%clk 0:02:07]} 25. e5 {[%clk 0:02:22]}  e6 {[%clk 0:02:01]} 26. dxe6+ {[%clk 0:02:18]}  Kxe6 {[%clk 0:02:00]} 27. exd6 {[%clk 0:02:16]}  Bxd6 {[%clk 0:02:00]} 28. g3 {[%clk 0:02:16]}  g5 {[%clk 0:01:54]} 29. Ne2 {[%clk 0:02:12]}  b5 {[%clk 0:01:44]} 30. f4 {[%clk 0:02:12]}  g4 {[%clk 0:01:38]} 31. Ke3 {[%clk 0:02:12]}  b4 {[%clk 0:01:37]} 32. Nc1 {[%clk 0:02:10]}  Kd5 {[%clk 0:01:27]} 33. Nd3 {[%clk 0:02:09]}  a5 {[%clk 0:01:26]} 34. Ne5 {[%clk 0:02:05]}  Bb5 {[%clk 0:01:26]} 35. Nf7 {[%clk 0:02:05]}  Be7 {[%clk 0:01:24]} 36. Ne5 {[%clk 0:01:57]}  a4 {[%clk 0:01:22]} 37. Nd3 {[%clk 0:01:55]}  h5 {[%clk 0:01:20]} 38. Ne1 {[%clk 0:01:50]}  h4 {[%clk 0:01:18]} 39. Ng2 {[%clk 0:01:47]}  h3 {[%clk 0:01:11]} 40. Ne1 {[%clk 0:01:47]}  Bd6 {[%clk 0:00:59]} 41. Nc2 {[%clk 0:01:44]}  axb3 {[%clk 0:00:54]} 42. axb3 {[%clk 0:01:43]}  Bf1 {[%clk 0:00:54]} 43. Be5 {[%clk 0:01:37]}  Bc5+ {[%clk 0:00:47]} 44. Bd4 {[%clk 0:01:36]}  Be7 {[%clk 0:00:47]} 45. Bb6 {[%clk 0:01:30]}  Bg2 {[%clk 0:00:46]} 46. Nd4 {[%clk 0:01:30]}  Be4 {[%clk 0:00:45]} 47. Ba7 {[%clk 0:01:26]}  Bd8 {[%clk 0:00:44]} 48. Nb5 {[%clk 0:01:22]}  Bh4 {[%clk 0:00:39]} 49. Kf2 {[%clk 0:01:19]}  Bf6 {[%clk 0:00:39]} 50. Nc7+ {[%clk 0:01:16]}  Kc6 {[%clk 0:00:37]} 51. Ne6 {[%clk 0:01:16]}  Kd6 {[%clk 0:00:37]} 52. Nd4 {[%clk 0:01:02]}  Kd5 {[%clk 0:00:37]} 53. Ke3 {[%clk 0:01:02]}  Bd8 {[%clk 0:00:36]} 54. Ne2 {[%clk 0:00:57]}  Bc2 {[%clk 0:00:29]} 55. Nd4 {[%clk 0:00:57]}  Bb1 {[%clk 0:00:29]} 56. Ne2 {[%clk 0:00:52]}  Bf6 {[%clk 0:00:28]} 57. Bd4 {[%clk 0:00:51]}  Be7 {[%clk 0:00:24]} 58. Ba7 {[%clk 0:00:49]}  Bf6 {[%clk 0:00:18]} 59. Bd4 {[%clk 0:00:48]}  Bd8 {[%clk 0:00:19]} 60. Ba7 {[%clk 0:00:48]}  Bc2 {[%clk 0:00:19]} 61. Nd4 {[%clk 0:00:48]}  Bd1 {[%clk 0:00:19]} 62. Kd2 {[%clk 0:00:45]}  Bf6 {[%clk 0:00:19]} 63. Nxf5 {[%clk 0:00:38]}  Bxb3 {[%clk 0:00:18]} 64. Ne3+ {[%clk 0:00:38]}  Ke4 {[%clk 0:00:19]} 65. Nxg4 {[%clk 0:00:39]}  Bc3+ {[%clk 0:00:19]} 66. Kc1 {[%clk 0:00:39]}  Kd3 {[%clk 0:00:14]} 67. Nf2+ {[%clk 0:00:38]}  Kc4 {[%clk 0:00:15]} 68. Nxh3 {[%clk 0:00:37]}  Ba2 {[%clk 0:00:15]} 69. Nf2 {[%clk 0:00:36]}  b3 {[%clk 0:00:12]} 70. Nd1 {[%clk 0:00:36]}  Bb4 {[%clk 0:00:12]} 71. Bb8 {[%clk 0:00:32]}  Kd5 {[%clk 0:00:03]} 72. Kb2 {[%clk 0:00:28]}  Be1 {[%clk 0:00:03]} 73. Be5 {[%clk 0:00:25]}  Ke4 {[%clk 0:00:02]} 74. Bc3 {[%clk 0:00:25]}  Bxc3+ {[%clk 0:00:01]} 75. Nxc3+ {[%clk 0:00:25]}  Kf3 {[%clk 0:00:02]} 76. f5 {[%clk 0:00:25]} 1-0


[Site "https://www.chess.com"]

[Event "Titled Tuesday Blitz October 11 Early 2022"]
[White "Terry, Renato"]
[Black "Aloma Vidal, Robert"]
[WhiteFideId "3803457"]
[BlackFideId "2260409"]
[WhiteElo "2577"]
[BlackElo "2435"]
[Result "1-0"]
[Round "02"]
[TimeControl "180+1"]
[Date "2022.10.11"]
[WhiteClock "0:00:43"]
[BlackClock "0:00:07"]

1. d4 {[%clk 0:03:00]}  d5 {[%clk 0:02:59]} 2. Bg5 {[%clk 0:02:59]}  f6 {[%clk 0:02:53]} 3. Bf4 {[%clk 0:02:59]}  Nc6 {[%clk 0:02:49]} 4. Nf3 {[%clk 0:02:58]}  Bg4 {[%clk 0:02:48]} 5. Nbd2 {[%clk 0:02:57]}  e6 {[%clk 0:02:47]} 6. e3 {[%clk 0:02:56]}  Bd6 {[%clk 0:02:48]} 7. Bg3 {[%clk 0:02:56]}  Nge7 {[%clk 0:02:46]} 8. Be2 {[%clk 0:02:55]}  O-O {[%clk 0:02:45]} 9. c4 {[%clk 0:02:55]}  Nf5 {[%clk 0:02:37]} 10. cxd5 {[%clk 0:02:51]}  exd5 {[%clk 0:02:28]} 11. Qb3 {[%clk 0:02:51]}  Nce7 {[%clk 0:02:11]} 12. O-O {[%clk 0:02:37]}  a5 {[%clk 0:02:03]} 13. a3 {[%clk 0:02:28]}  c6 {[%clk 0:01:54]} 14. Rac1 {[%clk 0:02:25]}  b5 {[%clk 0:01:49]} 15. Ne4 {[%clk 0:02:13]}  Bxg3 {[%clk 0:01:45]} 16. hxg3 {[%clk 0:02:11]}  a4 {[%clk 0:01:44]} 17. Qa2 {[%clk 0:02:11]}  Re8 {[%clk 0:01:32]} 18. Nc5 {[%clk 0:02:06]}  Nd6 {[%clk 0:01:21]} 19. Rfe1 {[%clk 0:02:03]}  Qb6 {[%clk 0:01:20]} 20. Bd3 {[%clk 0:02:00]}  Bxf3 {[%clk 0:01:18]} 21. gxf3 {[%clk 0:02:01]}  f5 {[%clk 0:01:10]} 22. Kg2 {[%clk 0:01:59]}  g6 {[%clk 0:01:10]} 23. Rh1 {[%clk 0:01:59]}  Kg7 {[%clk 0:01:06]} 24. Ne6+ {[%clk 0:01:53]}  Kf6 {[%clk 0:01:05]} 25. Nc5 {[%clk 0:01:53]}  Kg7 {[%clk 0:01:05]} 26. Ne6+ {[%clk 0:01:46]}  Kf6 {[%clk 0:01:04]} 27. Nf4 {[%clk 0:01:47]}  Kg7 {[%clk 0:00:56]} 28. Rh3 {[%clk 0:01:41]}  Ng8 {[%clk 0:00:55]} 29. Rch1 {[%clk 0:01:29]}  Nf6 {[%clk 0:00:55]} 30. g4 {[%clk 0:01:29]}  fxg4 {[%clk 0:00:50]} 31. fxg4 {[%clk 0:01:30]}  Nf7 {[%clk 0:00:35]} 32. Rh4 {[%clk 0:01:13]}  Rh8 {[%clk 0:00:26]} 33. Qb1 {[%clk 0:01:13]}  Ng5 {[%clk 0:00:09]} 34. Bxg6 {[%clk 0:01:11]}  Nfe4 {[%clk 0:00:07]} 35. Bxe4 {[%clk 0:01:09]}  dxe4 {[%clk 0:00:08]} 36. Qa2 {[%clk 0:01:02]}  Rae8 {[%clk 0:00:06]} 37. Rh6 {[%clk 0:01:03]}  Qc7 {[%clk 0:00:04]} 38. b3 {[%clk 0:01:00]}  Qd7 {[%clk 0:00:04]} 39. Kg3 {[%clk 0:00:59]}  Nf7 {[%clk 0:00:03]} 40. Nh5+ {[%clk 0:00:59]}  Kf8 {[%clk 0:00:02]} 41. Nf6 {[%clk 0:00:58]}  Qd6+ {[%clk 0:00:01]} 42. Kg2 {[%clk 0:00:58]}  Re6 {[%clk 0:00:02]} 43. Nxh7+ {[%clk 0:00:58]}  Kg7 {[%clk 0:00:02]} 44. R6h5 {[%clk 0:00:53]}  Rg6 {[%clk 0:00:02]} 45. bxa4 {[%clk 0:00:52]}  Rxg4+ {[%clk 0:00:02]} 46. Kf1 {[%clk 0:00:53]}  Nh6 {[%clk 0:00:02]} 47. Rg5+ {[%clk 0:00:47]}  Rxg5 {[%clk 0:00:03]} 48. Nxg5 {[%clk 0:00:48]}  Qf6 {[%clk 0:00:03]} 49. Rg1 {[%clk 0:00:47]}  Kf8 {[%clk 0:00:02]} 50. axb5 {[%clk 0:00:45]}  Nf5 {[%clk 0:00:02]} 51. Ke1 {[%clk 0:00:42]}  Rh2 {[%clk 0:00:02]} 52. Qe6 {[%clk 0:00:42]}  Qxe6 {[%clk 0:00:02]} 53. Nxe6+ {[%clk 0:00:42]}  Ke7 {[%clk 0:00:02]} 54. Nc5 {[%clk 0:00:42]}  cxb5 {[%clk 0:00:03]} 55. Nxe4 {[%clk 0:00:43]}  Nd6 {[%clk 0:00:03]} 56. Nxd6 {[%clk 0:00:42]}  Kxd6 {[%clk 0:00:04]} 57. Rg5 {[%clk 0:00:42]}  Kc6 {[%clk 0:00:04]} 58. Rc5+ {[%clk 0:00:42]}  Kb6 {[%clk 0:00:05]} 59. Ke2 {[%clk 0:00:43]}  Rh1 {[%clk 0:00:05]} 60. Rc3 {[%clk 0:00:43]}  Ra1 {[%clk 0:00:06]} 61. d5 {[%clk 0:00:43]}  Ra2+ {[%clk 0:00:07]} 62. Kf3 {[%clk 0:00:43]}  b4 {[%clk 0:00:07]} 63. axb4 {[%clk 0:00:43]} 1-0


[Site "https://www.chess.com"]